bitfinex/quotes_BTCUSD_20220109
["timestamp","ask_amount","ask_price","bid_price","bid_amount"]
[1641727084054,0.05968734,41915.0,41907.0,0.54851279]
[1641727084257,0.35127275,41916.0,41907.0,0.54851279]
[1641727084454,0.27355877,41911.0,41907.0,0.54851279]
[1641727084954,0.29453058,41910.0,41907.0,0.54851279]
[1641727085353,0.29453058,41910.0,41907.0,0.56451279]
[1641727085955,0.35422058,41910.0,41907.0,0.56451279]
[1641727086556,0.35422058,41910.0,41907.0,0.54851279]
[1641727087403,0.35422058,41910.0,41907.0,0.54951279]
[1641727088206,0.30968199,41909.0,41907.0,0.54951279]
[1641727088406,0.059695,41908.0,41907.0,0.54951279]
[1641727088606,0.059695,41908.0,41907.0,0.54791239]
[1641727090853,0.05956789,41908.0,41907.0,0.54791239]
[1641727092657,0.38962078,41908.0,41907.0,0.54791239]
[1641727093058,0.54791239,41907.0,41899.0,0.00042661]
[1641727093258,0.11941769,41902.0,41899.0,0.00042661]
[1641727093457,0.38641245,41901.0,41899.0,0.00042661]
[1641727093656,0.96833138,41900.0,41899.0,0.00042661]
[1641727093858,0.54207743,41900.0,41899.0,0.00042661]
[1641727094061,0.46833138,41900.0,41899.0,0.00042661]
[1641727094313,0.80953207,41900.0,41899.0,0.00042661]
[1641727095116,0.86924507,41900.0,41899.0,0.00042661]
[1641727095913,0.56924507,41900.0,41899.0,0.00042771]
[1641727096113,0.89495091,41900.0,41899.0,0.00042771]
[1641727096514,1.24495091,41900.0,41899.0,0.00042771]
[1641727096815,1.24495091,41900.0,41899.0,0.00085542]
[1641727097015,0.89495091,41900.0,41899.0,0.00042771]
[1641727097412,0.94095091,41900.0,41899.0,0.00042771]
[1641727098555,0.89495091,41900.0,41899.0,0.00103686]
[1641727098752,0.308,41901.0,41899.0,0.00103686]
[1641727098954,0.2007,41902.0,41899.0,0.00103686]
[1641727099153,0.9557,41905.0,41900.0,0.05969]
[1641727099356,0.005,41901.0,41900.0,0.05969]
[1641727099752,0.005,41901.0,41899.0,0.05903683]
[1641727100154,0.005,41901.0,41899.0,0.00946451]
[1641727100353,0.005,41901.0,41899.0,0.00903683]
[1641727100755,0.005,41901.0,41899.0,0.00103683]
[1641727100756,0.059702,41901.0,41899.0,0.00103683]
[1641727100954,0.31004031,41900.0,41899.0,0.00103683]
[1641727101357,0.31004031,41900.0,41899.0,0.00203683]
[1641727102607,0.31004031,41900.0,41899.0,0.00103683]
[1641727103412,0.47345731,41900.0,41899.0,0.00146451]
[1641727103610,0.47345731,41900.0,41899.0,0.00103683]
[1641727103909,0.35404031,41900.0,41899.0,0.00103683]
[1641727104109,0.70404031,41900.0,41899.0,0.00103683]
[1641727104310,0.70530768,41900.0,41899.0,0.00103683]
[1641727104512,0.42674359,41894.0,41893.0,0.000696]
[1641727104712,0.77449515,41894.0,41893.0,0.000696]
[1641727105011,0.8354363,41894.0,41893.0,0.000696]
[1641727105210,1.12633993,41894.0,41893.0,0.000696]
[1641727105458,1.47109896,41894.0,41893.0,0.000696]
[1641727106158,1.57099896,41894.0,41893.0,0.000696]
[1641727106359,1.32686619,41894.0,41893.0,0.000696]
[1641727106765,1.31486619,41894.0,41893.0,0.000696]
[1641727106960,1.36486619,41894.0,41893.0,0.000696]
[1641727107363,1.37186619,41894.0,41893.0,0.000696]
[1641727107959,1.47186619,41894.0,41893.0,0.0011323]
[1641727108161,1.47186619,41894.0,41880.0,0.15056637]
[1641727108162,0.059733,41887.0,41880.0,0.15056637]
[1641727108365,0.41100545,41881.0,41880.0,0.15056637]
[1641727108561,0.60169542,41881.0,41880.0,0.15056637]
[1641727108759,0.74954419,41881.0,41880.0,0.15056637]
[1641727109211,1.4815265,41881.0,41880.0,0.15056637]
[1641727109405,1.39098736,41881.0,41880.0,0.16156637]
[1641727110604,1.38598736,41881.0,41880.0,0.15056637]
[1641727111407,1.39398736,41881.0,41880.0,0.15056637]
[1641727112206,1.39398736,41881.0,41880.0,0.15100171]
[1641727112804,1.38598736,41881.0,41880.0,0.15100171]
[1641727113450,1.54798736,41881.0,41880.0,0.15100171]
[1641727113651,1.39798736,41881.0,41880.0,0.15178098]
[1641727114753,1.38598736,41881.0,41880.0,0.15178098]
[1641727115251,1.04552362,41881.0,41880.0,0.15178098]
[1641727115450,1.06552362,41881.0,41880.0,0.15178098]
[1641727116052,0.32738419,41881.0,41880.0,0.15178098]
[1641727116253,0.26637874,41881.0,41880.0,0.15178098]
[1641727116698,0.24637874,41881.0,41880.0,0.15220653]
[1641727116899,0.24637874,41881.0,41880.0,0.15177119]
[1641727117502,0.29037874,41881.0,41880.0,0.15177119]
[1641727118701,0.24637874,41881.0,41880.0,0.15177119]
[1641727119301,0.059731,41882.0,41880.0,0.15177119]
[1641727119500,0.044,41881.0,41880.0,0.15177119]
[1641727120760,0.49921366,41883.0,41880.0,0.15177119]
[1641727120957,0.7505691,41883.0,41880.0,0.15177119]
[1641727121156,0.7505691,41883.0,41880.0,0.15177141]
[1641727121359,0.55894766,41883.0,41880.0,0.15177141]
[1641727121556,0.059731,41882.0,41880.0,0.15177141]
[1641727122160,0.059731,41882.0,41881.0,0.00042576]
[1641727122359,0.37317788,41882.0,41881.0,0.00042576]
[1641727122557,0.43420886,41882.0,41881.0,0.00042576]
[1641727122760,0.06102675,41882.0,41881.0,0.00042576]
[1641727123559,0.11102675,41882.0,41881.0,0.00120409]
[1641727124612,0.06102675,41882.0,41881.0,0.00120409]
[1641727125007,0.99879591,41881.0,41880.0,0.15056637]
[1641727127408,1.04679591,41881.0,41880.0,0.15056637]
[1641727128654,1.04679591,41881.0,41880.0,0.60115106]
[1641727128853,1.04679591,41881.0,41880.0,0.65115106]
[1641727129051,0.23277632,41881.0,41880.0,0.30115106]
[1641727129451,0.26477632,41881.0,41880.0,0.30115106]
[1641727129753,0.26477632,41881.0,41880.0,0.65740092]
[1641727130755,0.18477632,41881.0,41880.0,0.65740092]
[1641727131453,0.22877632,41881.0,41880.0,0.65740092]
[1641727132712,0.18477632,41881.0,41880.0,0.65740092]
[1641727133113,0.18477632,41881.0,41880.0,0.50740092]
[1641727133416,0.18977632,41881.0,41880.0,0.50740092]
[1641727134414,0.18977632,41881.0,41880.0,0.15115106]
[1641727134615,0.18477632,41881.0,41880.0,0.15115106]
[1641727135457,0.56181542,41881.0,41880.0,0.15115106]
[1641727135661,0.23077632,41881.0,41880.0,0.15115106]
[1641727135857,0.51011686,41881.0,41880.0,0.15115106]
[1641727136657,0.46411686,41881.0,41880.0,0.15115106]
[1641727137460,0.46811686,41881.0,41880.0,0.15115106]
[1641727138761,0.46411686,41881.0,41880.0,0.15115106]
[1641727139501,0.47211686,41881.0,41880.0,0.15115106]
[1641727140904,0.46411686,41881.0,41880.0,0.15115106]
[1641727141206,0.79320506,41881.0,41880.0,0.15115106]
[1641727141404,0.80120506,41881.0,41880.0,0.15115106]
[1641727142806,0.79320506,41881.0,41880.0,0.15115106]
[1641727143458,0.81820506,41881.0,41880.0,0.15115106]
[1641727144759,0.79320506,41881.0,41880.0,0.15115106]
[1641727145562,0.83720506,41881.0,41880.0,0.15115106]
[1641727145963,0.50811686,41881.0,41880.0,0.15115106]
[1641727146806,0.46411686,41881.0,41880.0,0.15115106]
[1641727147606,0.48011686,41881.0,41880.0,0.15115106]
[1641727148807,0.46411686,41881.0,41880.0,0.15115106]
[1641727149506,0.49011686,41881.0,41880.0,0.15115106]
[1641727150308,0.5511085,41881.0,41880.0,0.15115106]
[1641727150558,0.62317772,41881.0,41880.0,0.14615106]
[1641727151354,0.59717772,41881.0,41880.0,0.14615106]
[1641727151554,0.55818608,41881.0,41880.0,0.14615106]
[1641727152555,0.67765908,41881.0,41880.0,0.14615106]
[1641727152955,0.55818608,41881.0,41880.0,0.14615106]
[1641727153355,0.53618608,41881.0,41880.0,0.14615106]
[1641727153557,0.59018608,41881.0,41880.0,0.14615106]
[1641727154698,0.53618608,41881.0,41880.0,0.14615106]
[1641727155498,0.58818608,41881.0,41880.0,0.14615106]
[1641727157499,0.58118608,41881.0,41880.0,0.14615106]
[1641727158874,0.53618608,41881.0,41880.0,0.14615106]
[1641727159478,0.59118608,41881.0,41880.0,0.14615106]
[1641727160676,0.53618608,41881.0,41880.0,0.14615106]
[1641727161477,0.59318608,41881.0,41880.0,0.14615106]
[1641727162703,0.53618608,41881.0,41880.0,0.14615106]
[1641727163504,0.58418608,41881.0,41880.0,0.14615106]
[1641727164903,0.53618608,41881.0,41880.0,0.14615106]
[1641727165553,0.30384554,41881.0,41880.0,0.14615106]
[1641727165759,0.23177632,41881.0,41880.0,0.14615106]
[1641727166059,0.13357632,41881.0,41880.0,0.24615106]
[1641727166257,0.13357632,41881.0,41880.0,0.71092406]
[1641727166454,0.13357632,41881.0,41880.0,0.32723106]
[1641727166655,0.13357632,41881.0,41880.0,1.10542919]
[1641727166855,0.13357632,41881.0,41880.0,0.42723106]
[1641727166856,0.08657632,41881.0,41880.0,0.42723106]
[1641727167856,0.08657632,41881.0,41880.0,0.34615106]
[1641727168055,0.08657632,41881.0,41880.0,0.24615106]
[1641727168257,0.08657632,41881.0,41880.0,0.34615106]
[1641727169310,0.08657632,41881.0,41880.0,0.14615106]
[1641727169911,0.402962,41881.0,41880.0,0.14615106]
[1641727171112,0.402962,41881.0,41880.0,0.14071706]
[1641727171514,0.410962,41881.0,41880.0,0.14071706]
[1641727171911,0.09457632,41881.0,41880.0,0.14071706]
[1641727172314,0.41092075,41881.0,41879.0,0.0008]
[1641727172518,0.54277649,41880.0,41879.0,0.0008]
[1641727173058,0.75042259,41880.0,41879.0,0.0008]
[1641727173260,1.15042259,41880.0,41879.0,0.0008]
[1641727173457,0.75042259,41880.0,41879.0,0.0008]
[1641727173659,0.75842259,41880.0,41879.0,0.0008]
[1641727173958,0.85842259,41880.0,41879.0,0.0008]
[1641727174960,0.85042259,41880.0,41879.0,0.0008]
[1641727175561,0.85842259,41880.0,41879.0,0.0008]
[1641727176801,0.85042259,41880.0,41879.0,0.0008]
[1641727177602,0.86642259,41880.0,41879.0,0.0008]
[1641727178604,0.86642259,41880.0,41879.0,0.00133705]
[1641727178803,0.85042259,41880.0,41879.0,0.00133705]
[1641727179702,3.99447283,41880.0,41879.0,0.00133705]
[1641727180557,0.00129503,41877.0,41876.0,0.00041626]
[1641727180756,0.32830543,41877.0,41876.0,0.00041626]
[1641727180956,0.63200543,41877.0,41876.0,0.00041626]
[1641727181156,1.16971341,41877.0,41876.0,0.00041626]
[1641727181557,1.18171341,41877.0,41876.0,0.00041626]
[1641727181758,0.73171341,41877.0,41876.0,0.00041627]
[1641727182157,1.03171341,41877.0,41876.0,0.00041627]
[1641727182559,1.08171341,41877.0,41876.0,0.00041627]
[1641727182961,1.16971341,41877.0,41876.0,0.00041627]
[1641727183160,2.94571341,41877.0,41876.0,0.00041627]
[1641727183360,0.00128258,41872.0,41871.0,0.004]
[1641727183561,0.00128258,41872.0,41868.0,0.000696]
[1641727183562,0.00120752,41869.0,41868.0,0.000696]
[1641727183761,0.35120752,41869.0,41868.0,0.000696]
[1641727183960,0.71380307,41869.0,41868.0,0.000696]
[1641727184208,1.44526199,41869.0,41868.0,0.000696]
[1641727184603,1.78004153,41869.0,41868.0,0.000696]
[1641727184804,1.83980253,41869.0,41868.0,0.000696]
[1641727185607,1.84880253,41869.0,41868.0,0.000696]
[1641727186205,1.4488019,41869.0,41868.0,0.000596]
[1641727186405,1.7988019,41869.0,41868.0,0.000596]
[1641727186809,1.7898019,41869.0,41868.0,0.000596]
[1641727187405,1.8897019,41869.0,41868.0,0.000596]
[1641727187706,1.8987019,41869.0,41868.0,0.000596]
[1641727188361,1.8987019,41869.0,41868.0,0.00102936]
[1641727188564,1.8987019,41869.0,41865.0,0.0014688]
[1641727188759,1.8987019,41869.0,41851.0,0.004]
[1641727188760,0.00127285,41863.0,41851.0,0.004]
[1641727188959,1.33497836,41862.0,41851.0,0.004]
[1641727189157,0.5,41861.0,41851.0,0.004]
[1641727189358,0.42213059,41852.0,41851.0,0.004]
[1641727189757,0.7472398,41852.0,41851.0,0.004]
[1641727190359,1.06665435,41852.0,41851.0,0.004]
[1641727191808,1.07765435,41852.0,41851.0,0.004]
[1641727192009,0.72765435,41852.0,41851.0,0.004]
[1641727192210,0.34276714,41852.0,41851.0,0.004]
[1641727192809,0.34276714,41852.0,41851.0,0.00443245]
[1641727193012,0.33176714,41852.0,41851.0,0.00443245]
[1641727193209,0.07213059,41852.0,41851.0,0.00443245]
[1641727193613,0.08913059,41852.0,41851.0,0.00443245]
[1641727193811,0.08913059,41852.0,41851.0,0.0048649]
[1641727194010,0.00290255,41858.0,41851.0,0.00443245]
[1641727194209,0.32833081,41858.0,41851.0,0.00443245]
[1641727194410,0.32833081,41858.0,41851.0,0.25759184]
[1641727194612,0.32833081,41858.0,41851.0,0.00443245]
[1641727194910,0.32833081,41858.0,41854.0,0.00043242]
[1641727195755,0.39033081,41858.0,41854.0,0.00043242]
[1641727196156,0.39033081,41858.0,41855.0,0.00043241]
[1641727196355,0.38742826,41858.0,41855.0,0.00043241]
[1641727196961,0.32542826,41858.0,41855.0,0.00043241]
[1641727197157,0.32542826,41858.0,41856.0,0.00042267]
[1641727197759,0.65855373,41858.0,41856.0,0.00042267]
[1641727197959,0.30800857,41857.0,41856.0,0.00042267]
[1641727199211,0.44496745,41858.0,41856.0,0.00042267]
[1641727199613,0.563771,41857.0,41856.0,0.00042267]
[1641727199812,1.013771,41857.0,41856.0,0.00042267]
[1641727200013,1.01504406,41857.0,41856.0,0.00042267]
[1641727200212,0.06504406,41857.0,41856.0,0.00119423]
[1641727200412,0.063771,41857.0,41856.0,0.0016169]
[1641727200711,0.063771,41857.0,41856.0,0.00119423]
[1641727200912,0.059771,41857.0,41856.0,0.00119423]
[1641727201814,0.005,41857.0,41856.0,0.00118262]
[1641727202811,0.005,41857.0,41856.0,0.00118284]
[1641727203063,0.38519326,41858.0,41856.0,0.00118284]
[1641727203565,2.81258508,41857.0,41856.0,0.00118284]
[1641727203768,2.81385044,41857.0,41856.0,0.00118284]
[1641727204963,2.81385044,41857.0,41856.0,0.00119471]
[1641727205866,2.92385044,41857.0,41850.0,0.98901346]
[1641727206067,0.85126979,41851.0,41850.0,0.45476916]
[1641727206268,0.81450069,41851.0,41850.0,0.3161663]
[1641727206465,0.62670979,41851.0,41850.0,0.3161663]
[1641727206918,1.20295421,41851.0,41850.0,0.3161663]
[1641727207114,1.26274321,41851.0,41850.0,0.3161663]
[1641727207318,1.64409723,41851.0,41850.0,0.3161663]
[1641727207615,1.65409723,41851.0,41850.0,0.3161663]
[1641727207915,1.75409723,41851.0,41850.0,0.3161663]
[1641727208325,1.95409723,41851.0,41850.0,0.1111663]
[1641727208516,1.75409723,41851.0,41850.0,0.1111663]
[1641727208919,1.74409723,41851.0,41850.0,0.1111663]
[1641727209317,1.74409723,41851.0,41850.0,0.11159665]
[1641727209718,1.75509723,41851.0,41850.0,0.11159665]
[1641727210321,0.95338171,41851.0,41850.0,0.11159665]
[1641727210563,0.111,41851.0,41850.0,0.11159665]
[1641727210766,0.011,41851.0,41850.0,0.11159665]
[1641727210964,0.20028,41859.0,41850.0,0.11159665]
[1641727211163,0.35122223,41860.0,41851.0,0.36149532]
[1641727211361,0.32326903,41860.0,41853.0,0.26253315]
[1641727211563,0.32326903,41860.0,41852.0,0.27343567]
[1641727211960,0.38303444,41860.0,41852.0,0.27343567]
[1641727212161,0.38303303,41860.0,41852.0,0.27343567]
[1641727212363,0.059764,41860.0,41853.0,0.31849945]
[1641727212562,0.00042747,41861.0,41856.0,0.00129339]
[1641727212762,0.00042758,41861.0,41856.0,0.08114339]
[1641727213564,0.00042758,41861.0,41856.0,0.14089439]
[1641727213764,0.00642893,41861.0,41856.0,0.012]
[1641727213963,0.35,41860.0,41856.0,0.012]
[1641727214223,0.55064,41860.0,41856.0,0.012]
[1641727214808,0.55064,41860.0,41852.0,0.19885935]
[1641727215008,0.55064,41860.0,41854.0,0.059762]
[1641727215412,0.55064,41860.0,41854.0,0.11952047]
[1641727215609,0.55064,41860.0,41854.0,0.05975847]
[1641727215911,0.55864,41860.0,41854.0,0.038]
[1641727216314,0.55864,41860.0,41855.0,0.059761]
[1641727217011,0.55064,41860.0,41855.0,0.059761]
[1641727217812,0.55364,41860.0,41855.0,0.083761]
[1641727218463,0.20364,41860.0,41855.0,0.024]
[1641727219064,0.20064,41860.0,41853.0,0.059764]
[1641727219664,0.20064,41860.0,41853.0,0.068764]
[1641727221066,0.20064,41860.0,41853.0,0.059764]
[1641727221466,0.20064,41860.0,41858.0,0.30834277]
[1641727221467,1.20064,41860.0,41858.0,0.30834277]
[1641727223314,1.0,41860.0,41858.0,0.30834277]
[1641727223515,1.0,41860.0,41858.0,0.42784646]
[1641727223814,1.066,41860.0,41859.0,0.32324262]
[1641727225114,1.0,41860.0,41859.0,0.32324262]
[1641727225315,1.0,41860.0,41859.0,0.37450012]
[1641727225560,0.18564597,41860.0,41859.0,0.37450012]
[1641727225759,0.19564597,41860.0,41859.0,0.38050012]
[1641727226160,0.19564597,41860.0,41859.0,1.2503877]
[1641727226360,0.20004,41869.0,41864.0,0.059733]
[1641727226563,0.20004,41869.0,41868.0,0.0012166]
[1641727226760,0.20004,41869.0,41868.0,0.3849096]
[1641727226961,0.20004,41869.0,41868.0,0.0012166]
[1641727227163,0.20004,41869.0,41868.0,0.6447363]
[1641727227760,0.20004,41869.0,41868.0,0.6467363]
[1641727228160,0.20045959,41869.0,41868.0,1.06986927]
[1641727228363,0.20034,41876.0,41868.0,1.60356227]
[1641727228566,1.5268,41890.0,41875.0,0.00128486]
[1641727228763,0.26894018,41888.0,41878.0,0.2802613]
[1641727229214,0.34692,41890.0,41884.0,0.30631673]
[1641727229417,0.05972,41890.0,41884.0,0.30631673]
[1641727229717,0.119441,41890.0,41884.0,0.30631673]
[1641727230113,0.43581227,41890.0,41884.0,0.30631673]
[1641727230314,0.059721,41890.0,41884.0,0.30631673]
[1641727231114,0.059721,41888.0,41881.0,0.00124555]
[1641727231414,0.059721,41888.0,41876.0,0.34641812]
[1641727231415,0.35,41886.0,41876.0,0.34641812]
[1641727231615,0.35,41886.0,41873.0,0.00120617]
[1641727231616,0.45,41886.0,41873.0,0.00120617]
[1641727232015,0.059728,41883.0,41875.0,0.26876986]
[1641727232218,0.25535042,41883.0,41875.0,0.26876986]
[1641727232415,0.00042163,41880.0,41875.0,0.26876986]
[1641727232815,0.00042163,41880.0,41873.0,0.00120617]
[1641727233263,0.00042163,41880.0,41864.0,0.00043229]
[1641727233468,0.35,41879.0,41865.0,0.00123071]
[1641727233667,0.34898725,41878.0,41877.0,0.00055817]
[1641727233864,0.40872825,41878.0,41877.0,0.00055817]
[1641727234666,0.40914986,41878.0,41877.0,0.00055817]
[1641727235866,0.40913132,41878.0,41877.0,0.00055817]
[1641727237013,0.4091407,41878.0,41877.0,0.00055817]
[1641727237419,1.12987621,41878.0,41877.0,0.00055817]
[1641727237613,1.39665125,41878.0,41877.0,0.00055817]
[1641727237814,1.75663125,41878.0,41877.0,0.00055817]
[1641727238014,1.80663125,41878.0,41877.0,0.00055817]
[1641727238215,5.08903903,41878.0,41877.0,0.00055817]
[1641727238412,5.08903903,41878.0,41864.0,0.00042257]
[1641727238413,0.24728018,41865.0,41864.0,0.00042257]
[1641727238614,0.35,41865.0,41864.0,0.00042257]
[1641727238814,0.72533439,41865.0,41864.0,0.00042257]
[1641727239012,0.72533439,41865.0,41864.0,0.00084514]
[1641727239214,0.72533439,41865.0,41864.0,0.00042257]
[1641727239415,0.07209438,41868.0,41864.0,0.00042257]
[1641727240460,0.37721483,41868.0,41864.0,0.00042257]
[1641727241262,0.37721483,41868.0,41864.0,0.00084536]
[1641727241461,0.37721483,41868.0,41864.0,0.00042279]
[1641727242263,0.07209438,41868.0,41864.0,0.00042279]
[1641727243071,0.00041246,41874.0,41864.0,0.00042279]
[1641727243266,0.00041246,41874.0,41868.0,0.32729941]
[1641727243463,0.00041246,41874.0,41871.0,0.05973319]
[1641727243665,0.00041246,41874.0,41872.0,0.33388087]
[1641727244313,0.00041246,41874.0,41871.0,0.05973319]
[1641727244515,0.00041246,41874.0,41870.0,0.30890845]
[1641727244711,0.0004126,41874.0,41870.0,0.30890845]
[1641727245114,0.0004126,41874.0,41871.0,0.059736]
[1641727245710,0.00041259,41874.0,41871.0,0.060736]
[1641727246514,0.00041259,41874.0,41871.0,0.001]
[1641727247015,0.00041259,41874.0,41868.0,0.05]
[1641727247016,0.00082519,41874.0,41868.0,0.05]
[1641727247415,0.00082519,41874.0,41868.0,0.29254322]
[1641727247615,0.00082519,41874.0,41870.0,0.05974]
[1641727247815,0.0004126,41874.0,41870.0,0.05974]
[1641727249268,0.0004126,41874.0,41867.0,0.38308165]
[1641727249671,0.0008252,41874.0,41867.0,0.38308165]
[1641727249971,0.0008252,41874.0,41870.0,0.001]
[1641727250169,0.059748,41873.0,41870.0,0.001]
[1641727250971,0.059748,41873.0,41867.0,0.32333765]
[1641727251167,0.00041361,41874.0,41867.0,0.32333765]
[1641727251810,0.06015861,41874.0,41867.0,0.32633765]
[1641727252210,0.06015859,41874.0,41867.0,0.32633765]
[1641727252712,0.06015859,41874.0,41867.0,0.38608165]
[1641727253116,0.06015859,41874.0,41867.0,0.38308165]
[1641727253712,0.07415859,41874.0,41867.0,0.38808165]
[1641727254313,0.07415748,41874.0,41867.0,0.38808165]
[1641727255013,0.06015748,41874.0,41867.0,0.38308165]
[1641727255663,0.059748,41873.0,41865.0,0.059748]
[1641727255862,0.059748,41873.0,41867.0,0.005]
[1641727256064,0.059749,41871.0,41867.0,0.005]
[1641727256662,0.35852744,41871.0,41867.0,0.005]
[1641727257063,0.35852744,41871.0,41865.0,0.30266224]
[1641727257265,0.34034837,41871.0,41865.0,0.30266224]
[1641727257463,0.32365432,41871.0,41865.0,0.30266224]
[1641727257863,0.66892432,41871.0,41865.0,0.34366224]
[1641727258063,0.20088,41870.0,41865.0,0.34366224]
[1641727258268,0.059753,41868.0,41865.0,0.34366224]
[1641727258963,0.20088,41870.0,41865.0,0.34366224]
[1641727259213,0.20088,41870.0,41865.0,0.30266224]
[1641727259814,0.21088,41870.0,41865.0,0.34166224]
[1641727260013,0.58278527,41870.0,41865.0,0.34166224]
[1641727261013,0.57278527,41870.0,41865.0,0.30266224]
[1641727261216,0.059753,41869.0,41864.0,0.00042278]
[1641727261416,0.045855,41867.0,41864.0,0.00042278]
[1641727261616,0.040575,41867.0,41864.0,0.00042278]
[1641727262213,0.05975967,41866.0,41864.0,0.00084556]
[1641727262415,0.409762,41865.0,41864.0,0.00042278]
[1641727262619,0.50911196,41865.0,41864.0,0.00042278]
[1641727263074,0.60911196,41865.0,41864.0,0.00042278]
[1641727263376,1.20911196,41865.0,41864.0,0.00042279]
[1641727263874,1.22611196,41865.0,41864.0,0.00042279]
[1641727264574,1.23352055,41865.0,41864.0,0.00042279]
[1641727264974,1.51595491,41865.0,41864.0,0.00042279]
[1641727265174,2.23233491,41865.0,41864.0,0.00042279]
[1641727265575,0.19606437,41861.0,41850.0,0.1111663]
[1641727265779,0.23586269,41852.0,41850.0,0.1111663]
[1641727265979,0.21343603,41851.0,41850.0,0.1111663]
[1641727266575,0.21343603,41851.0,41850.0,0.11158816]
[1641727267715,0.21343603,41851.0,41850.0,0.11201003]
[1641727267921,0.21343603,41851.0,41850.0,0.11158817]
[1641727269720,0.05978,41852.0,41850.0,0.11158817]
[1641727269922,0.05978,41852.0,41850.0,0.11201004]
[1641727270119,0.05978,41852.0,41850.0,0.11158817]
[1641727270120,0.05354536,41852.0,41850.0,0.11158817]
[1641727270556,1.0,41851.0,41850.0,0.11158817]
[1641727271161,1.0,41851.0,41850.0,0.11158713]
[1641727272060,1.0,41851.0,41850.0,0.11200797]
[1641727272257,1.0,41851.0,41850.0,0.11158714]
[1641727273460,1.1,41851.0,41850.0,0.11158714]
[1641727273862,1.281562,41851.0,41850.0,0.11158714]
[1641727274207,1.231562,41851.0,41850.0,0.11158714]
[1641727275013,1.219562,41851.0,41850.0,0.11158714]
[1641727275409,1.219562,41851.0,41850.0,0.11158716]
[1641727275913,1.231562,41851.0,41850.0,0.11158716]
[1641727277110,1.319562,41851.0,41850.0,0.11158716]
[1641727277957,1.331562,41851.0,41850.0,0.11158716]
[1641727278962,1.27178,41851.0,41850.0,0.11158716]
[1641727279159,1.27178,41851.0,41850.0,0.11200802]
[1641727279361,1.27178,41851.0,41850.0,0.11158716]
[1641727279561,1.17178,41851.0,41850.0,0.11158716]
[1641727279963,1.08478,41851.0,41850.0,0.11158716]
[1641727280164,1.025,41851.0,41850.0,0.11158716]
[1641727281067,1.0,41851.0,41850.0,0.11158716]
[1641727281469,1.0,41851.0,41850.0,0.11200802]
[1641727281711,1.0,41851.0,41850.0,0.11158716]
[1641727281912,1.052,41851.0,41850.0,0.11158716]
[1641727283215,1.0,41851.0,41850.0,0.11158716]
[1641727284118,1.014,41851.0,41850.0,0.11158716]
[1641727284717,1.014,41851.0,41850.0,0.11200802]
[1641727284917,1.014,41851.0,41850.0,0.11158716]
[1641727285117,1.0,41851.0,41850.0,0.11158716]
[1641727285957,1.012,41851.0,41850.0,0.11158716]
[1641727286359,1.012,41851.0,41850.0,0.10658716]
[1641727287762,1.0,41851.0,41850.0,0.10658716]
[1641727287962,1.011,41851.0,41850.0,1.27576551]
[1641727288160,0.9117,41851.0,41850.0,0.75903765]
[1641727288363,0.6975,41851.0,41850.0,0.75903765]
[1641727288761,0.6975,41851.0,41850.0,1.07486625]
[1641727288962,0.6975,41851.0,41850.0,0.49117325]
[1641727289210,0.32883291,41860.0,41850.0,0.59117325]
[1641727289409,0.32883291,41860.0,41855.0,0.059758]
[1641727290007,0.25287595,41856.0,41855.0,0.059758]
[1641727290207,0.25287595,41856.0,41850.0,0.10744379]
[1641727290607,0.25287595,41856.0,41853.0,0.059766]
[1641727291209,0.32883291,41860.0,41853.0,0.059766]
[1641727291409,0.32883291,41860.0,41854.0,0.00042082]
[1641727291809,0.35683291,41860.0,41854.0,0.00042082]
[1641727292007,0.059766,41859.0,41854.0,0.00042082]
[1641727292509,0.68555863,41860.0,41856.0,0.00042079]
[1641727292964,0.028,41860.0,41856.0,0.00042079]
[1641727293169,0.39670437,41861.0,41856.0,0.00042079]
[1641727293567,0.39670437,41861.0,41857.0,0.00042078]
[1641727293967,0.46870437,41861.0,41857.0,0.00042078]
[1641727294370,0.52846637,41861.0,41857.0,0.00042078]
[1641727294570,0.25884472,41858.0,41857.0,0.00042078]
[1641727295668,0.31861572,41858.0,41857.0,0.00042078]
[1641727295867,0.32961572,41858.0,41857.0,0.00042078]
[1641727296368,0.42961572,41858.0,41857.0,0.00042078]
[1641727296568,0.32961572,41858.0,41857.0,0.00042078]
[1641727296811,0.53055572,41858.0,41857.0,0.00042078]
[1641727297210,0.51955572,41858.0,41857.0,0.00042078]
[1641727297611,0.45978472,41858.0,41850.0,0.1061663]
[1641727298009,0.47278472,41858.0,41850.0,0.1061663]
[1641727298208,0.47278472,41858.0,41857.0,0.00042079]
[1641727298410,0.21394,41858.0,41857.0,0.00042079]
[1641727298610,0.013,41858.0,41857.0,0.00042079]
[1641727299210,0.259805,41859.0,41857.0,0.00084158]
[1641727299412,0.259805,41859.0,41857.0,0.00042079]
[1641727299912,0.277805,41859.0,41857.0,0.00042079]
[1641727300463,0.277805,41859.0,41857.0,0.00042078]
[1641727301063,0.259805,41859.0,41857.0,0.00042078]
[1641727302468,0.259805,41859.0,41857.0,0.00084156]
[1641727302667,0.259805,41859.0,41857.0,0.00042078]
[1641727303867,0.272805,41859.0,41857.0,0.00042078]
[1641727305118,0.259805,41859.0,41857.0,0.00042078]
[1641727305919,0.273805,41859.0,41857.0,0.00042078]
[1641727307120,0.259805,41859.0,41857.0,0.00042078]
[1641727308062,0.278805,41859.0,41857.0,0.00042078]
[1641727308459,0.278805,41859.0,41854.0,0.05964075]
[1641727309061,0.278805,41859.0,41850.0,0.2256923]
[1641727309262,0.259805,41859.0,41850.0,0.2256923]
[1641727309664,0.259805,41859.0,41851.0,0.33175361]
[1641727309864,0.259805,41859.0,41852.0,0.05976385]
[1641727310065,0.283805,41859.0,41852.0,0.05976385]
[1641727310264,0.283805,41859.0,41852.0,0.0601923]
[1641727310764,0.283805,41859.0,41854.0,0.059764]
[1641727311166,0.259805,41859.0,41855.0,0.2894176]
[1641727311366,0.20004,41859.0,41855.0,0.2894176]
[1641727311818,0.20004,41859.0,41856.0,0.059762]
[1641727312016,0.26004,41859.0,41856.0,0.059762]
[1641727312619,0.06,41859.0,41856.0,0.059762]
[1641727313018,0.05968176,41859.0,41856.0,0.11951943]
[1641727313820,0.19606437,41861.0,41856.0,0.11951943]
[1641727314019,0.064,41859.0,41856.0,0.119518]
[1641727314222,0.064,41859.0,41858.0,0.02182641]
[1641727314422,0.064,41859.0,41858.0,0.51632941]
[1641727315123,0.064,41859.0,41858.0,0.87504995]
[1641727315321,0.19606437,41861.0,41858.0,0.99454624]
[1641727315574,0.19606437,41861.0,41859.0,0.11101778]
[1641727315775,0.19606437,41861.0,41860.0,0.383693]
[1641727316377,0.19606437,41861.0,41860.0,0.77401908]